fUSD/lending_fUSD_20250610
["ID","MTS","AMOUNT","RATE_DAILY","PERIOD"]
[365183397,1749523846029,-151.0,0.00016438,2]
[365183398,1749523846038,-485.64210461,0.00016438,2]
[365183399,1749523846047,-490.0,0.00016438,2]
[365183400,1749523846056,-490.0,0.00016438,2]
[365183401,1749523846065,-490.0,0.00016438,2]
[365183402,1749523846074,-188.16748629,0.00016438,2]
[365183403,1749523846083,-478.21291558,0.00016438,2]
[365183404,1749523846092,-151.0,0.00016438,2]
[365183405,1749523846101,-151.0,0.00016438,2]
[365183406,1749523846111,-151.0,0.00016438,2]
[365183407,1749523846121,-151.0,0.00016438,2]
[365183408,1749523846130,-151.0,0.00016438,2]
[365183409,1749523846139,-156.909346,0.00016438,2]
[365183410,1749523846148,-151.0,0.00016438,2]
[365183411,1749523846158,-151.0,0.00016438,2]
[365183412,1749523846167,-151.0,0.00016438,2]
[365183413,1749523846176,-151.0,0.00016438,2]
[365183414,1749523846185,-151.0,0.00016438,2]
[365183415,1749523846195,-151.0,0.00016438,2]
[365183416,1749523846205,-151.0,0.00016438,2]
[365183417,1749523846216,-151.0,0.00016438,2]
[365183418,1749523846227,-474.31645138,0.00016438,2]
[365183419,1749523846237,-242.682327,0.00016438,2]
[365183420,1749523846247,-285.55142582,0.00016438,2]
[365183421,1749523846258,-490.0,0.00016438,2]
[365183422,1749523846269,-490.0,0.00016438,2]
[365183423,1749523846278,-490.0,0.00016438,2]
[365183425,1749523846288,-475.63583916,0.00016438,2]
[365183426,1749523846298,-490.0,0.00016438,2]
[365183427,1749523846307,-490.0,0.00016438,2]
[365183428,1749523846317,-250.0,0.00016438,2]
[365183429,1749523846326,-490.0,0.00016438,2]
[365183430,1749523846335,-490.0,0.00016438,2]
[365183431,1749523846345,-421.70012922,0.00016438,2]
[365183432,1749523846354,-151.0,0.00016438,2]
[365183433,1749523846363,-490.0,0.00016438,2]
[365183434,1749523846373,-151.0,0.00016438,2]
[365183435,1749523846383,-151.0,0.00016438,2]
[365183436,1749523846392,-151.0,0.00016438,2]
[365183437,1749523846402,-151.0,0.00016438,2]
[365183438,1749523846411,-151.0,0.00016438,2]
[365183439,1749523846421,-151.0,0.00016438,2]
[365183440,1749523846430,-490.0,0.00016438,2]
[365183441,1749523846440,-151.0,0.00016438,2]
[365183442,1749523846449,-470.0,0.00016438,2]
[365183443,1749523846458,-151.0,0.00016438,2]
[365183444,1749523846467,-151.0,0.00016438,2]
[365183445,1749523846477,-151.0,0.00016438,2]
[365183446,1749523846486,-151.0,0.00016438,2]
[365183447,1749523846496,-490.0,0.00016438,2]
[365183448,1749523846505,-151.0,0.00016438,2]
[365183449,1749523846515,-151.0,0.00016438,2]
[365183450,1749523846524,-490.0,0.00016438,2]
[365183451,1749523846534,-421.401011,0.00016438,2]
[365183452,1749523846543,-421.401011,0.00016438,2]
[365183453,1749523846553,-490.0,0.00016438,2]
[365183454,1749523846562,-421.401011,0.00016438,2]
[365183455,1749523846571,-421.401011,0.00016438,2]
[365183456,1749523846581,-421.401011,0.00016438,2]
[365183457,1749523846590,-421.401011,0.00016438,2]
[365183458,1749523846600,-421.401011,0.00016438,2]
[365183459,1749523846610,-601.1571318,0.00016438,2]
[365183460,1749523846619,-458.66369113,0.00016438,2]
[365183461,1749523846629,-421.401011,0.00016438,2]
[365183462,1749523846638,-421.401011,0.00016438,2]
[365183463,1749523846647,-421.401011,0.00016438,2]
[365183464,1749523846657,-421.401011,0.00016438,2]
[365183465,1749523846666,-421.401011,0.00016438,2]
[365183466,1749523846675,-439.61038763,0.00016438,2]
[365183467,1749523846684,-490.0,0.00016438,2]
[365183468,1749523846694,-421.401011,0.00016438,2]
[365183469,1749523846703,-421.401011,0.00016438,2]
[365183470,1749523846713,-336.0297122,0.00016438,2]
[365183471,1749523846722,-155.681705,0.00016438,2]
[365183472,1749523846731,-490.0,0.00016438,2]
[365183473,1749523846741,-476.17366415,0.00016438,2]
[365183474,1749523846750,-473.22976465,0.00016438,2]
[365183475,1749523846760,-490.0,0.00016438,2]
[365183476,1749523846769,-483.3539468,0.00016438,2]
[365183477,1749523846778,-284.22133126,0.00016438,2]
[365183478,1749523846787,-487.07419818,0.00016438,2]
[365183479,1749523846796,-490.0,0.00016438,2]
[365183480,1749523846805,-500.0,0.00016438,2]
[365183481,1749523846814,-440.62065183,0.00016438,2]
[365183482,1749523846824,-490.0,0.00016438,2]
[365183483,1749523846832,-480.52477397,0.00016438,2]
[365183484,1749523846842,-490.0,0.00016438,2]
[365183485,1749523846851,-450.0,0.00016438,2]
[365183486,1749523846860,-490.0,0.00016438,2]
[365183487,1749523846869,-491.93,0.00016438,2]
[365183488,1749523846878,-490.0,0.00016438,2]
[365183489,1749523846887,-481.35511905,0.00016438,2]
[365183490,1749523846897,-490.0,0.00016438,2]
[365183491,1749523846907,-490.0,0.00016438,2]
[365183492,1749523846916,-490.0,0.00016438,2]
[365183493,1749523846926,-490.0,0.00016438,2]
[365183494,1749523846935,-490.0,0.00016438,2]
[365183495,1749523846945,-490.0,0.00016438,2]
[365183496,1749523846954,-441.40236386,0.00016438,2]
[365183497,1749523846963,-490.0,0.00016438,2]
[365183498,1749523846973,-490.0,0.00016438,2]
[365183499,1749523846983,-435.44260803,0.00016438,2]
[365183500,1749523846993,-490.0,0.00016438,2]
[365183501,1749523847003,-616.48153645,0.00016438,2]
[365183502,1749523847012,-490.01564335,0.00016438,2]
[365183503,1749523847022,-458.2912401,0.00016438,2]
[365183504,1749523847031,-408.98370241,0.00016438,2]
[365183505,1749523847041,-151.0,0.00016438,2]
[365183506,1749523847050,-151.0,0.00016438,2]
[365183507,1749523847060,-151.0,0.00016438,2]
[365183508,1749523847070,-151.0,0.00016438,2]
[365183509,1749523847079,-151.0,0.00016438,2]
[365183510,1749523847089,-561.28778311,0.00016438,2]
[365183511,1749523847099,-151.0,0.00016438,2]
[365183512,1749523847109,-151.0,0.00016438,2]
[365183513,1749523847118,-2310.29,0.00016438,2]
[365183514,1749523847127,-490.0,0.00016438,2]
[365183515,1749523847138,-490.0,0.00016438,2]
[365183516,1749523847149,-292.13121461,0.00016438,2]
[365183517,1749523847158,-490.0,0.00016438,2]
[365183518,1749523847167,-485.2160865,0.00016438,2]
[365183519,1749523847177,-490.0,0.00016438,2]
[365183520,1749523847187,-490.0,0.00016438,2]
[365183521,1749523847196,-469.40288092,0.00016438,2]
[365183522,1749523847206,-490.0,0.00016438,2]
[365183523,1749523847216,-490.0,0.00016438,2]
[365183524,1749523847228,-187.0420696,0.00016438,2]
[365183525,1749523847239,-477.06016279,0.00016438,2]
[365183526,1749523847249,-608.65819535,0.00016438,2]
[365183527,1749523847260,-481.69261788,0.00016438,2]
[365183528,1749523847270,-499.65351069,0.00016438,2]
[365183529,1749523847280,-490.0,0.00016438,2]
[365183530,1749523847290,-342.92135967,0.00016438,2]
[365183531,1749523847304,-480.0,0.00016438,2]
[365183532,1749523847314,-490.0,0.00016438,2]
[365183533,1749523847324,-490.0,0.00016438,2]
[365183534,1749523847334,-490.0,0.00016438,2]
[365183535,1749523847344,-490.0,0.00016438,2]
[365183536,1749523847353,-727.94,0.00016438,2]
[365183537,1749523847363,-490.0,0.00016438,2]
[365183538,1749523847373,-490.0,0.00016438,2]
[365183539,1749523847381,-490.0,0.00016438,2]
[365183540,1749523847391,-490.0,0.00016438,2]
[365183541,1749523847400,-490.0,0.00016438,2]
[365183542,1749523847410,-480.47429187,0.00016438,2]
[365183543,1749523847419,-490.0,0.00016438,2]
[365183544,1749523847429,-492.42197018,0.00016438,2]
[365183545,1749523847440,-490.0,0.00016438,2]
[365183546,1749523847449,-490.0,0.00016438,2]
[365183547,1749523847458,-490.0,0.00016438,2]
[365183548,1749523847468,-658.99,0.00016438,2]
[365183549,1749523847477,-490.0,0.00016438,2]
[365183550,1749523847486,-481.64062822,0.00016438,2]
[365183551,1749523847496,-439.20627041,0.00016438,2]
[365183552,1749523847506,-490.0,0.00016438,2]
[365183553,1749523847515,-530.86289964,0.00016438,2]
[365183554,1749523847524,-507.12704728,0.00016438,2]
[365183555,1749523847533,-475.1524524,0.00016438,2]
[365183556,1749523847542,-490.0,0.00016438,2]
[365183557,1749523847552,-591.43,0.00016438,2]
[365183558,1749523847561,-490.0,0.00016438,2]
[365183559,1749523847571,-490.0,0.00016438,2]
[365183560,1749523847580,-429.3668098,0.00016438,2]
[365183561,1749523847589,-500.0,0.00016438,2]
[365183562,1749523847599,-490.0,0.00016438,2]
[365183563,1749523847608,-500.0,0.00016438,2]
[365183564,1749523847617,-500.0,0.00016438,2]
[365183565,1749523847627,-459.08250223,0.00016438,2]
[365183566,1749523847636,-239.33816966,0.00016438,2]
[365183567,1749523847646,-497.80460701,0.00016438,2]
[365183568,1749523847656,-490.0,0.00016438,2]
[365183569,1749523847666,-490.0,0.00016438,2]
[365183570,1749523847676,-491.78211934,0.00016438,2]
[365183571,1749523847685,-490.0,0.00016438,2]
[365183572,1749523847695,-490.0,0.00016438,2]
[365183573,1749523847705,-490.0,0.00016438,2]
[365183574,1749523847715,-490.0,0.00016438,2]
[365183575,1749523847725,-490.0,0.00016438,2]
[365183576,1749523847734,-490.0,0.00016438,2]
[365183577,1749523847745,-512.62496106,0.00016438,2]
[365183578,1749523847755,-490.0,0.00016438,2]
[365183579,1749523847764,-480.0,0.00016438,2]
[365183580,1749523847774,-490.0,0.00016438,2]
[365183581,1749523847783,-490.0,0.00016438,2]
[365183582,1749523847793,-500.57601943,0.00016438,2]
[365183583,1749523847803,-490.0,0.00016438,2]
[365183584,1749523847812,-490.0,0.00016438,2]
[365183585,1749523847822,-480.79162914,0.00016438,2]
[365183586,1749523847833,-490.0,0.00016438,2]
[365183587,1749523847843,-490.0,0.00016438,2]
[365183588,1749523847853,-942.15,0.00016438,2]
[365183589,1749523847862,-490.0,0.00016438,2]
[365183590,1749523847872,-151.0,0.00016438,2]
[365183591,1749523847882,-151.0,0.00016438,2]
[365183592,1749523847892,-151.0,0.00016438,2]
[365183593,1749523847902,-525.03769122,0.00016438,2]
[365183594,1749523847912,-490.0,0.00016438,2]
[365183595,1749523847923,-160.128952,0.00016438,2]
[365183596,1749523847932,-490.0,0.00016438,2]
[365183597,1749523847942,-480.0,0.00016438,2]
[365183598,1749523847952,-490.0,0.00016438,2]
[365183599,1749523847961,-3723.58,0.00016438,2]
[365183600,1749523847971,-490.0,0.00016438,2]
[365183601,1749523847981,-490.0,0.00016438,2]
[365183602,1749523847990,-490.0,0.00016438,2]
[365183603,1749523848000,-490.0,0.00016438,2]
[365183604,1749523848010,-485.47902953,0.00016438,2]
[365183605,1749523848020,-490.0,0.00016438,2]
[365183606,1749523848030,-490.0,0.00016438,2]
[365183607,1749523848039,-470.05644938,0.00016438,2]
[365183608,1749523848049,-499.68841451,0.00016438,2]
[365183609,1749523848059,-490.0,0.00016438,2]
[365183610,1749523848069,-490.0,0.00016438,2]
[365183611,1749523848078,-485.54385906,0.00016438,2]
[365183612,1749523848088,-490.0,0.00016438,2]
[365183613,1749523848098,-490.0,0.00016438,2]
[365183614,1749523848108,-490.0,0.00016438,2]
[365183615,1749523848118,-498.03052957,0.00016438,2]
[365183616,1749523848128,-515.66742402,0.00016438,2]
[365183617,1749523848137,-490.0,0.00016438,2]
[365183618,1749523848147,-490.0,0.00016438,2]
[365183619,1749523848157,-480.0,0.00016438,2]
[365183620,1749523848167,-490.0,0.00016438,2]
[365183621,1749523848178,-490.0,0.00016438,2]
[365183622,1749523848188,-151.0,0.00016438,2]
[365183623,1749523848198,-151.0,0.00016438,2]
[365183624,1749523848208,-151.0,0.00016438,2]
[365183625,1749523848219,-461.70322744,0.00016438,2]
[365183626,1749523848230,-151.0,0.00016438,2]
[365183627,1749523848240,-490.0,0.00016438,2]
[365183628,1749523848252,-490.0,0.00016438,2]
[365183629,1749523848263,-495.33216124,0.00016438,2]
[365183630,1749523848274,-665.06248706,0.00016438,2]
[365183631,1749523848707,-144.03751294,0.00016438,2]
[365183632,1749523848717,-490.0,0.00016438,2]
[365183633,1749523848727,-515.19301225,0.00016438,2]
[365183634,1749523848737,-490.0,0.00016438,2]
[365183635,1749523848750,-393.14037217,0.00016438,2]
[365183636,1749523848760,-490.0,0.00016438,2]
[365183637,1749523848770,-228.56040033,0.00016438,2]
[365183638,1749523848781,-703.69916364,0.00016438,2]
[365183639,1749523848811,-221.14083636,0.00016438,2]
[365183640,1749523848821,-453.07448339,0.00016438,2]
[365183641,1749523848844,-36.92551661,0.00016438,2]
[365183642,1749523848853,-924.84,0.00016438,2]
[365183643,1749523848863,-924.84,0.00016438,2]
[365183644,1749523848873,-486.47397486,0.00016438,2]
[365183645,1749523848883,-490.0,0.00016438,2]
[365183646,1749523848892,-490.0,0.00016438,2]
[365183647,1749523848902,-435.10083849,0.00016438,2]
[365183648,1749523848911,-490.0,0.00016438,2]
[365183649,1749523848921,-482.95611321,0.00016438,2]
[365183650,1749523848930,-480.0,0.00016438,2]
[365183651,1749523848939,-490.0,0.00016438,2]
[365183652,1749523848949,-574.04893531,0.00016438,2]
[365183653,1749523848959,-1466.62,0.00016438,2]
[365183654,1749523848969,-490.0,0.00016438,2]
[365183655,1749523848978,-490.0,0.00016438,2]
[365183656,1749523848988,-435.20603118,0.00016438,2]
[365183657,1749523848999,-490.0,0.00016438,2]
[365183658,1749523849009,-490.0,0.00016438,2]
[365183659,1749523849019,-490.0,0.00016438,2]
[365183660,1749523849029,-481.08471435,0.00016438,2]
[365183661,1749523849038,-490.0,0.00016438,2]
[365183662,1749523849048,-483.47470679,0.00016438,2]
[365183663,1749523849058,-490.0,0.00016438,2]
[365183664,1749523849068,-490.0,0.00016438,2]
[365183665,1749523849078,-497.35737436,0.00016438,2]
[365183666,1749523849087,-269.4858891,0.00016438,2]
[365183667,1749523849097,-577.46,0.00016438,2]
[365183668,1749523849107,-490.0,0.00016438,2]
[365183669,1749523849117,-490.0,0.00016438,2]
[365183670,1749523849127,-151.0,0.00016438,2]
[365183671,1749523849137,-152.251856,0.00016438,2]
[365183672,1749523849147,-490.0,0.00016438,2]
[365183673,1749523849158,-487.16087,0.00016438,2]
[365183674,1749523849168,-433.01654705,0.00016438,2]
[365183675,1749523849177,-151.0,0.00016438,2]
[365183676,1749523849187,-151.0,0.00016438,2]
[365183677,1749523849197,-496.13799882,0.00016438,2]
[365183678,1749523849208,-490.0,0.00016438,2]
[365183679,1749523849220,-169.777487,0.00016438,2]
[365183680,1749523849230,-490.0,0.00016438,2]
[365183681,1749523849240,-490.0,0.00016438,2]
[365183682,1749523849252,-480.0,0.00016438,2]
[365183683,1749523849263,-484.58226534,0.00016438,2]
[365183684,1749523849273,-490.0,0.00016438,2]
[365183685,1749523849283,-1304.48,0.00016438,2]
[365183686,1749523849294,-499.76646209,0.00016438,2]
[365183687,1749523849305,-490.0,0.00016438,2]
[365183688,1749523849315,-490.0,0.00016438,2]
[365183689,1749523849326,-490.0,0.00016438,2]
[365183690,1749523849337,-490.0,0.00016438,2]
[365183691,1749523849347,-480.0,0.00016438,2]
[365183692,1749523849357,-480.0,0.00016438,2]
[365183693,1749523849367,-490.0,0.00016438,2]
[365183694,1749523849378,-490.0,0.00016438,2]
[365183695,1749523849389,-490.0,0.00016438,2]
[365183696,1749523849399,-1158.27,0.00016438,2]
[365183697,1749523849409,-490.0,0.00016438,2]
[365183698,1749523849418,-490.0,0.00016438,2]
[365183699,1749523849428,-490.0,0.00016438,2]
[365183700,1749523849438,-815.74,0.00016438,2]
[365183701,1749523849447,-490.0,0.00016438,2]
[365183702,1749523849457,-490.0,0.00016438,2]
[365183703,1749523849465,-501.39609851,0.00016438,2]
[365183704,1749523849474,-151.0,0.00016438,2]
[365183705,1749523849483,-485.67539232,0.00016438,2]
[365183706,1749523849493,-151.0,0.00016438,2]
[365183707,1749523849503,-480.0,0.00016438,2]
[365183708,1749523849513,-490.0,0.00016438,2]
[365183709,1749523849523,-151.0,0.00016438,2]
[365183710,1749523849533,-151.0,0.00016438,2]
[365183711,1749523849543,-151.0,0.00016438,2]
[365183712,1749523849772,-151.0,0.00016438,2]
[365183713,1749523849781,-151.0,0.00016438,2]
[365183714,1749523849790,-478.38752262,0.00016438,2]
[365183715,1749523849800,-171.996484,0.00016438,2]
[365183716,1749523849809,-490.0,0.00016438,2]
[365183717,1749523849818,-490.0,0.00016438,2]
[365183718,1749523849827,-490.0,0.00016438,2]
[365183719,1749523849836,-500.0,0.00016438,2]
[365183720,1749523849846,-490.0,0.00016438,2]
[365183721,1749523849855,-500.0,0.00016438,2]
[365183722,1749523849864,-500.0,0.00016438,2]
[365183723,1749523849875,-585.33,0.00016438,2]
[365183724,1749523849884,-490.0,0.00016438,2]
[365183725,1749523849894,-516.3234834,0.00016438,2]
[365183726,1749523849903,-490.0,0.00016438,2]
[365183727,1749523849913,-490.0,0.00016438,2]
[365183728,1749523849922,-486.7376248,0.00016438,2]
[365183729,1749523849932,-490.0,0.00016438,2]
[365183730,1749523849942,-516.74064297,0.00016438,2]
[365183731,1749523849952,-490.0,0.00016438,2]
[365183732,1749523849961,-490.0,0.00016438,2]
[365183733,1749523849971,-490.0,0.00016438,2]
[365183734,1749523849981,-490.0,0.00016438,2]
[365183735,1749523849990,-887.0,0.00016438,2]
[365183736,1749523850000,-490.0,0.00016438,2]
[365183737,1749523850010,-490.0,0.00016438,2]
[365183738,1749523850019,-490.0,0.00016438,2]
[365183739,1749523850029,-490.0,0.00016438,2]
[365183740,1749523850039,-464.38994853,0.00016438,2]
[365183741,1749523850049,-151.0,0.00016438,2]
[365183742,1749523850058,-151.0,0.00016438,2]
[365183743,1749523850068,-151.0,0.00016438,2]
[365183744,1749523850080,-152.559731,0.00016438,2]
[365183745,1749523850089,-535.59387304,0.00016438,2]
[365183746,1749523850099,-1303.65,0.00016438,2]
[365183747,1749523850108,-490.0,0.00016438,2]
[365183748,1749523850118,-490.0,0.00016438,2]
[365183749,1749523850128,-490.0,0.00016438,2]
[365183750,1749523850137,-490.0,0.00016438,2]
[365183751,1749523850146,-551.23,0.00016438,2]
[365183752,1749523850155,-490.0,0.00016438,2]
[365183753,1749523850165,-490.0,0.00016438,2]
[365183754,1749523850174,-490.0,0.00016438,2]
[365183755,1749523850183,-300.0,0.00016438,2]
[365183756,1749523850193,-490.0,0.00016438,2]
[365183757,1749523850203,-490.0,0.00016438,2]
[365183758,1749523850212,-412.43281585,0.00016438,2]
[365183759,1749523850225,-490.0,0.00016438,2]
[365183760,1749523850234,-490.0,0.00016438,2]
[365183761,1749523850244,-713.53,0.00016438,2]
[365183762,1749523850254,-490.0,0.00016438,2]
[365183763,1749523850265,-490.0,0.00016438,2]
[365183764,1749523850275,-480.0,0.00016438,2]
[365183765,1749523850284,-490.0,0.00016438,2]
[365183766,1749523850294,-259.796616,0.00016438,2]
[365183767,1749523850304,-259.796616,0.00016438,2]
[365183768,1749523850314,-259.796616,0.00016438,2]
[365183769,1749523850323,-259.796616,0.00016438,2]
[365183770,1749523850333,-490.0,0.00016438,2]
[365183771,1749523850343,-259.796616,0.00016438,2]
[365183772,1749523850353,-259.796616,0.00016438,2]
[365183773,1749523850362,-471.67779827,0.00016438,2]
[365183774,1749523850372,-500.0,0.00016438,2]
[365183775,1749523850382,-259.796616,0.00016438,2]
[365183776,1749523850392,-500.0,0.00016438,2]
[365183777,1749523850401,-501.9445872,0.00016438,2]
[365183778,1749523850411,-259.796616,0.00016438,2]
[365183779,1749523850421,-490.0,0.00016438,2]
[365183780,1749523850433,-259.796616,0.00016438,2]
[365183781,1749523850442,-259.796616,0.00016438,2]
[365183782,1749523850452,-490.0,0.00016438,2]
[365183783,1749523850462,-230.72788475,0.00016438,2]
[365183784,1749523850472,-259.796616,0.00016438,2]
[365183785,1749523850482,-259.796616,0.00016438,2]
[365183786,1749523850492,-490.0,0.00016438,2]
[365183787,1749523850503,-259.796616,0.00016438,2]
[365183788,1749523850513,-259.796616,0.00016438,2]
[365183789,1749523850522,-151.0,0.00016438,2]
[365183790,1749523850532,-259.796616,0.00016438,2]
[365183791,1749523850541,-151.0,0.00016438,2]
[365183792,1749523850551,-490.0,0.00016438,2]
[365183793,1749523850561,-259.796616,0.00016438,2]
[365183794,1749523850570,-490.0,0.00016438,2]
[365183795,1749523850579,-151.0,0.00016438,2]
[365183796,1749523850589,-151.0,0.00016438,2]
[365183797,1749523850598,-151.0,0.00016438,2]
[365183798,1749523850608,-151.0,0.00016438,2]
[365183799,1749523850618,-561.82734483,0.00016438,2]
[365183800,1749523850627,-151.0,0.00016438,2]
[365183801,1749523850637,-151.0,0.00016438,2]
[365183802,1749523850646,-151.0,0.00016438,2]
[365183803,1749523850656,-151.0,0.00016438,2]
[365183804,1749523850666,-816.92,0.00016438,2]
[365183805,1749523850675,-151.0,0.00016438,2]
[365183806,1749523850685,-151.0,0.00016438,2]
[365183807,1749523850695,-151.0,0.00016438,2]
[365183808,1749523850705,-151.0,0.00016438,2]
[365183809,1749523850714,-151.0,0.00016438,2]
[365183810,1749523850724,-1000.0,0.00016438,2]
[365183811,1749523850733,-151.0,0.00016438,2]
[365183812,1749523850743,-151.0,0.00016438,2]
[365183813,1749523850753,-151.0,0.00016438,2]
[365183814,1749523850762,-490.0,0.00016438,2]
[365183815,1749523850772,-151.0,0.00016438,2]
[365183816,1749523850782,-2116.56,0.00016438,2]
[365183817,1749523850791,-151.0,0.00016438,2]
[365183818,1749523850801,-151.0,0.00016438,2]
[365183819,1749523850811,-151.0,0.00016438,2]
[365183820,1749523850821,-211.637831,0.00016438,2]
[365183821,1749523850829,-151.0,0.00016438,2]
[365183822,1749523850839,-151.0,0.00016438,2]
[365183823,1749523850849,-151.0,0.00016438,2]
[365183824,1749523850858,-151.0,0.00016438,2]
[365183825,1749523850868,-695.4,0.00016438,2]
[365183826,1749523850877,-151.0,0.00016438,2]
[365183827,1749523850886,-151.0,0.00016438,2]
[365183828,1749523850896,-428.88377364,0.00016438,2]
[365183829,1749523850905,-490.0,0.00016438,2]
[365183830,1749523850914,-490.0,0.00016438,2]
[365183831,1749523850924,-490.0,0.00016438,2]
[365183832,1749523850933,-508.52210453,0.00016438,2]
[365183833,1749523850943,-507.11786567,0.00016438,2]
[365183834,1749523850953,-151.0,0.00016438,2]
[365183835,1749523850963,-151.0,0.00016438,2]
[365183836,1749523850973,-151.0,0.00016438,2]
[365183837,1749523850983,-151.0,0.00016438,2]
[365183838,1749523850992,-737.4,0.00016438,2]
[365183839,1749523851003,-151.0,0.00016438,2]
[365183840,1749523851013,-239.522301,0.00016438,2]
[365183841,1749523851022,-490.0,0.00016438,2]
[365183842,1749523851032,-480.0,0.00016438,2]
[365183843,1749523851042,-151.0,0.00016438,2]
[365183844,1749523851051,-490.0,0.00016438,2]
[365183845,1749523851062,-154.365983,0.00016438,2]
[365183846,1749523851072,-1314.67,0.00016438,2]
[365183847,1749523851082,-490.0,0.00016438,2]
[365183848,1749523851092,-490.0,0.00016438,2]
[365183849,1749523851101,-490.0,0.00016438,2]
[365183850,1749523851111,-490.0,0.00016438,2]
[365183851,1749523851120,-430.53725999,0.00016438,2]
[365183852,1749523851130,-490.0,0.00016438,2]
[365183853,1749523851140,-490.0,0.00016438,2]
[365183854,1749523851149,-480.0,0.00016438,2]
[365183855,1749523851159,-490.0,0.00016438,2]
[365183856,1749523851169,-151.0,0.00016438,2]
[365183857,1749523851179,-1041.6700234,0.00016438,2]
[365183858,1749523851188,-490.0,0.00016438,2]
[365183859,1749523851198,-2.71107918,0.00016438,2]
[365183860,1749523851222,-148.28892082,0.00016438,2]
[365183861,1749523851232,-151.0,0.00016438,2]
[365183862,1749523851242,-112.33642312,0.00016438,2]
[365183863,1749523851545,-251.2205999,0.00016438,2]
[365183864,1749523852445,-6070.23943725,0.00016328,2]
[365183865,1749523852454,-126.44297698,0.00016438,2]
[365183866,1749523852463,-490.0,0.00016438,2]
[365183867,1749523852473,-151.0,0.00016438,2]
[365183868,1749523852481,-583.46,0.00016438,2]
[365183869,1749523852490,-490.0,0.00016438,2]
[365183870,1749523852500,-151.0,0.00016438,2]
[365183871,1749523852509,-151.0,0.00016438,2]
[365183872,1749523852519,-151.0,0.00016438,2]
[365183873,1749523852527,-151.0,0.00016438,2]
[365183874,1749523852536,-677.8,0.00016438,2]
[365183875,1749523852545,-151.0,0.00016438,2]
[365183876,1749523852555,-151.0,0.00016438,2]
[365183877,1749523852563,-151.0,0.00016438,2]
[365183878,1749523852572,-151.0,0.00016438,2]
[365183879,1749523852581,-278.389971,0.00016438,2]
[365183880,1749523852590,-488.69057975,0.00016438,2]
[365183881,1749523852599,-490.0,0.00016438,2]
[365183882,1749523852608,-500.0,0.00016438,2]
[365183883,1749523852617,-500.0,0.00016438,2]
[365183884,1749523852626,-500.0,0.00016438,2]
[365183885,1749523852635,-490.0,0.00016438,2]
[365183886,1749523852645,-490.0,0.00016438,2]
[365183887,1749523852654,-490.0,0.00016438,2]
[365183888,1749523852662,-610.17,0.00016438,2]
[365183889,1749523852671,-2822.0,0.00016438,2]
[365183890,1749523852680,-875.43,0.00016438,2]
[365183891,1749523852690,-490.0,0.00016438,2]
[365183892,1749523852701,-432.91500779,0.00016438,2]
[365183893,1749523852711,-151.0,0.00016438,2]
[365183894,1749523852720,-151.0,0.00016438,2]
[365183895,1749523852730,-151.0,0.00016438,2]
[365183896,1749523852739,-151.0,0.00016438,2]
[365183897,1749523852748,-490.0,0.00016438,2]